lending/lending_fUSD_20250425
["ID","MTS","AMOUNT","RATE_DAILY","PERIOD"]
[358929993,1745553044519,-12500.0,0.00042221,7]
[358929994,1745553044529,-151.0,0.00042221,14]
[358929995,1745553044539,-12500.0,0.0004223,7]
[358929996,1745553044549,-151.0,0.00042238,14]
[358929997,1745553044559,-12500.0,0.00042238,7]
[358929998,1745553044569,-5000.0,0.00042243,2]
[358929999,1745553044579,-12500.0,0.00042247,7]
[358930000,1745553044589,-12500.0,0.00042256,7]
[358930001,1745553044599,-5093.13111509,0.00042265,7]
[358930002,1745553045415,-7406.86888491,0.00042265,7]
[358930003,1745553045426,-12500.0,0.00042274,7]
[358930004,1745553045436,-289.833937,0.00042274,14]
[358930005,1745553045446,-151.0,0.00042282,14]
[358930006,1745553045456,-246.990033,0.00042282,14]
[358930007,1745553045466,-246.990033,0.00042282,14]
[358930008,1745553045475,-12500.0,0.00042282,7]
[358930009,1745553045486,-151.0,0.00042291,14]
[358930010,1745553045495,-151.0,0.00042291,14]
[358930011,1745553045506,-151.0,0.00042291,14]
[358930012,1745553045515,-151.0,0.00042291,14]
[358930013,1745553045525,-241.300835,0.00042291,14]
[358930014,1745553045534,-151.0,0.00042291,14]
[358930015,1745553045544,-151.0,0.00042291,14]
[358930016,1745553045554,-616.452898,0.00042291,14]
[358930017,1745553045564,-616.452898,0.00042291,14]
[358930018,1745553045573,-151.0,0.00042291,14]
[358930020,1745553045583,-4256.92852613,0.00042291,7]
[358930038,1745553046314,-690.535018,0.00040101,14]
[358930039,1745553046324,-690.535018,0.0004012,14]
[358930041,1745553046334,-2798.4970419,0.00040263,2]
[358930043,1745553046346,-8243.07147387,0.00042291,7]
[358930045,1745553046355,-12500.0,0.000423,7]
[358930047,1745553046365,-655.08,0.000423,60]
[358930049,1745553046375,-216.14,0.000423,33]
[358930051,1745553046386,-216.14,0.000423,33]
[358930053,1745553046396,-216.14,0.000423,33]
[358930055,1745553046406,-216.14,0.000423,33]
[358930057,1745553046416,-216.14,0.000423,33]
[358930059,1745553046425,-216.14,0.000423,33]
[358930061,1745553046435,-216.14,0.000423,33]
[358930063,1745553046445,-216.14,0.000423,33]
[358930065,1745553046456,-216.14,0.000423,33]
[358930067,1745553046465,-216.14,0.000423,33]
[358930069,1745553046475,-216.14,0.000423,33]
[358930071,1745553046485,-216.14,0.000423,33]
[358930073,1745553046494,-216.14,0.000423,33]
[358930075,1745553046504,-216.14,0.000423,33]
[358930077,1745553046513,-216.14,0.000423,33]
[358930079,1745553046522,-216.14,0.000423,33]
[358930081,1745553046532,-216.14,0.000423,33]
[358930083,1745553046542,-216.14,0.000423,33]
[358930085,1745553046551,-216.14,0.000423,33]
[358930086,1745553046560,-216.14,0.000423,33]
[358930088,1745553046570,-216.14,0.000423,33]
[358930090,1745553046580,-216.14,0.000423,33]
[358930093,1745553046589,-216.14,0.000423,33]
[358930094,1745553046599,-216.14,0.000423,33]
[358930096,1745553046608,-264.52309,0.000423,2]
[358930098,1745553046617,-264.52309,0.000423,2]
[358930100,1745553046626,-151.0,0.000423,14]
[358930102,1745553046635,-206.896493,0.000423,14]
[358930104,1745553046644,-206.896493,0.000423,14]
[358930106,1745553046654,-151.0,0.000423,14]
[358930108,1745553046663,-185.596036,0.000423,14]
[358930110,1745553046672,-185.596036,0.000423,14]
[358930112,1745553046682,-12500.0,0.00042309,7]
[358930114,1745553046691,-168.68372,0.00042309,14]
[358930116,1745553046701,-215.397559,0.00042309,14]
[358930118,1745553046710,-215.397559,0.00042309,14]
[358930120,1745553046719,-2001.46780456,0.00042318,7]
[358930122,1745553046731,-1991.20039004,0.00042318,7]
[358930125,1745553046750,-649.17895039,0.00042318,7]
[358930129,1745553046777,-690.535018,0.0004013,14]
[358930131,1745553046787,-7858.15285501,0.00042318,7]
[358930133,1745553046796,-12500.0,0.00042326,7]
[358930134,1745553046806,-12500.0,0.00042335,7]
[358930136,1745553046815,-12500.0,0.00042344,7]
[358930138,1745553046824,-12500.0,0.00042353,7]
[358930140,1745553046834,-151.0,0.00042353,14]
[358930142,1745553046844,-158.969449,0.00042353,14]
[358930143,1745553046854,-12500.0,0.00042362,7]
[358930144,1745553046863,-151.0,0.00042362,14]
[358930145,1745553046873,-151.0,0.0004237,14]
[358930146,1745553046884,-12500.0,0.0004237,7]
[358930147,1745553046895,-12500.0,0.00042379,7]
[358930148,1745553046906,-12500.0,0.00042388,7]
[358930149,1745553046918,-12500.0,0.00042397,7]
[358930150,1745553046931,-151.0,0.00042397,14]
[358930151,1745553046943,-12500.0,0.00042406,7]
[358930152,1745553046953,-12500.0,0.00042414,7]
[358930153,1745553046964,-153.227849,0.00042423,14]
[358930154,1745553046973,-151.0,0.00042423,14]
[358930155,1745553046983,-246.990033,0.00042423,14]
[358930156,1745553046994,-246.990033,0.00042423,14]
[358930157,1745553047005,-151.0,0.00042423,14]
[358930158,1745553047015,-616.452898,0.00042423,14]
[358930159,1745553047026,-616.452898,0.00042423,14]
[358930160,1745553047036,-151.0,0.00042423,14]
[358930161,1745553047046,-1000.0,0.00042423,28]
[358930162,1745553047056,-1000.0,0.00042423,28]
[358930163,1745553047068,-1000.0,0.00042423,28]
[358930164,1745553047077,-1000.0,0.00042423,28]
[358930165,1745553047086,-1000.0,0.00042423,28]
[358930166,1745553047095,-1000.0,0.00042423,28]
[358930167,1745553047104,-1000.0,0.00042423,28]
[358930168,1745553047113,-1000.0,0.00042423,28]
[358930169,1745553047123,-1000.0,0.00042423,28]
[358930170,1745553047134,-1000.0,0.00042423,28]
[358930171,1745553047143,-1000.0,0.00042423,28]
[358930172,1745553047155,-1000.0,0.00042423,28]
[358930173,1745553047166,-1000.0,0.00042423,28]
[358930174,1745553047177,-1000.0,0.00042423,28]
[358930175,1745553047186,-1000.0,0.00042423,28]
[358930176,1745553047197,-1000.0,0.00042423,28]
[358930177,1745553047208,-1000.0,0.00042423,28]
[358930178,1745553047219,-1000.0,0.00042423,28]
[358930179,1745553047228,-1000.0,0.00042423,28]
[358930180,1745553047240,-1000.0,0.00042423,28]
[358930181,1745553047250,-1000.0,0.00042423,28]
[358930182,1745553047260,-1000.0,0.00042423,28]
[358930183,1745553047271,-1000.0,0.00042423,28]
[358930184,1745553047280,-1000.0,0.00042423,28]
[358930185,1745553047290,-1000.0,0.00042423,28]
[358930186,1745553047300,-1000.0,0.00042423,28]
[358930187,1745553047309,-1000.0,0.00042423,28]
[358930188,1745553047318,-1000.0,0.00042423,28]
[358930189,1745553047327,-1000.0,0.00042423,28]
[358930190,1745553047336,-1000.0,0.00042423,28]
[358930191,1745553047345,-1000.0,0.00042423,28]
[358930192,1745553047354,-1000.0,0.00042423,28]
[358930193,1745553047364,-1000.0,0.00042423,28]
[358930194,1745553047374,-1000.0,0.00042423,28]
[358930195,1745553047383,-1000.0,0.00042423,28]
[358930196,1745553047392,-1000.0,0.00042423,28]
[358930197,1745553047401,-1000.0,0.00042423,28]
[358930198,1745553047410,-1000.0,0.00042423,28]
[358930199,1745553047420,-1000.0,0.00042423,28]
[358930200,1745553047429,-1000.0,0.00042423,28]
[358930201,1745553047439,-1000.0,0.00042423,28]
[358930202,1745553047448,-1000.0,0.00042423,28]
[358930203,1745553047459,-1000.0,0.00042423,28]
[358930204,1745553047469,-1000.0,0.00042423,28]
[358930205,1745553047478,-1000.0,0.00042423,28]
[358930206,1745553047487,-1000.0,0.00042423,28]
[358930207,1745553047498,-1000.0,0.00042423,28]
[358930208,1745553047508,-1000.0,0.00042423,28]
[358930209,1745553047519,-1000.0,0.00042423,28]
[358930210,1745553047528,-1000.0,0.00042423,28]
[358930211,1745553047538,-1000.0,0.00042423,28]
[358930212,1745553047549,-1000.0,0.00042423,28]
[358930213,1745553047559,-1000.0,0.00042423,28]
[358930214,1745553047569,-1000.0,0.00042423,28]
[358930215,1745553047579,-1051.583831,0.00042423,28]
[358930216,1745553047590,-12500.0,0.00042423,7]
[358930217,1745553047599,-12500.0,0.00042432,7]
[358930218,1745553047609,-293.824563,0.00042432,14]
[358930219,1745553047618,-151.0,0.00042432,14]
[358930220,1745553047628,-151.0,0.00042432,14]
[358930221,1745553047637,-151.0,0.00042432,14]
[358930222,1745553047647,-12500.0,0.00042441,7]
[358930223,1745553047656,-157.213,0.00042441,14]
[358930224,1745553047665,-296.075955,0.00042441,14]
[358930225,1745553047675,-264.52309,0.00042441,2]
[358930226,1745553047684,-264.52309,0.00042441,2]
[358930227,1745553047694,-151.0,0.00042441,14]
[358930228,1745553047703,-206.896493,0.00042441,14]
[358930229,1745553047713,-206.896493,0.00042441,14]
[358930230,1745553047724,-151.0,0.00042441,14]
[358930231,1745553047736,-185.596036,0.00042441,14]
[358930232,1745553047745,-185.596036,0.00042441,14]
[358930233,1745553047755,-12500.0,0.0004245,7]
[358930234,1745553047765,-215.397559,0.0004245,14]
[358930235,1745553047774,-215.397559,0.0004245,14]
[358930236,1745553047784,-153.183536,0.00042456,14]
[358930237,1745553047793,-12500.0,0.00042458,7]
[358930238,1745553047803,-4266.24953907,0.00042461,10]
[358930239,1745553047813,-204.25,0.00042461,2]
[358930240,1745553047822,-1330.55,0.00042465,120]
[358930241,1745553047832,-224.13127635,0.00042465,10]
[358930242,1745553047841,-261.07344874,0.00042466,10]
[358930243,1745553047851,-1000.0,0.00042466,14]
[358930244,1745553047860,-1000.0,0.00042466,14]
[358930245,1745553047869,-500.0,0.00042466,6]
[358930246,1745553047879,-200.0,0.00042466,10]
[358930247,1745553047888,-200.0,0.00042466,10]
[358930248,1745553047941,-600.97703936,0.00042467,10]
[358930249,1745553047951,-12500.0,0.00042467,7]
[358930250,1745553047962,-1999.95809691,0.0004247,10]
[358930251,1745553047972,-1999.95809691,0.00042471,10]
[358930252,1745553047982,-1084.4004803,0.00042473,2]
[358930253,1745553047991,-206.0184262,0.00042473,2]
[358930254,1745553048284,-200.0,0.00042474,10]
[358930255,1745553048295,-261.07344874,0.00042475,10]
[358930256,1745553048304,-12500.0,0.00042476,7]
[358930257,1745553048315,-365.29060975,0.00042481,10]
[358930258,1745553048324,-261.07344874,0.00042482,10]
[358930259,1745553048335,-224.13127635,0.00042483,10]
[358930260,1745553048344,-21705.68101882,0.00042485,2]
[358930261,1745553048354,-200.0,0.00042485,10]
[358930262,1745553048364,-12500.0,0.00042485,7]
[358930263,1745553048374,-261.07344874,0.0004249,10]
[358930264,1745553048383,-261.07344874,0.00042492,10]
[358930265,1745553048393,-261.07344874,0.00042492,10]
[358930266,1745553048403,-261.07344874,0.00042492,10]
[358930267,1745553048413,-365.29060975,0.00042492,10]
[358930268,1745553048423,-202.0744937,0.00042493,10]
[358930269,1745553048432,-12500.0,0.00042494,7]
[358930270,1745553048442,-200.59580458,0.00042494,10]
[358930271,1745553048452,-200.0,0.00042495,10]
[358930272,1745553048463,-404.14898739,0.00042497,10]
[358930273,1745553048472,-202.0744937,0.00042498,10]
[358930274,1745553048483,-200.59580458,0.00042498,10]
[358930275,1745553048494,-730.58121949,0.00042498,10]
[358930276,1745553048503,-4228.40438479,0.00042499,10]
[358930277,1745553048513,-200.0,0.000425,10]
[358930278,1745553048523,-151.0,0.00042502,14]
[358930279,1745553048533,-12500.0,0.00042502,7]
[358930280,1745553048542,-200.0,0.00042503,10]
[358930281,1745553048552,-202.0744937,0.00042504,10]
[358930282,1745553048563,-1320.94206783,0.00042506,10]
[358930283,1745553048572,-261.07344874,0.00042507,10]
[358930284,1745553048582,-200.0,0.00042509,10]
[358930285,1745553048591,-12500.0,0.00042511,7]
[358930286,1745553048602,-730.58121949,0.00042514,10]
[358930287,1745553048612,-4228.40438479,0.00042516,10]
[358930288,1745553048622,-224.13127635,0.00042517,10]
[358930289,1745553048632,-261.07344874,0.00042518,10]
[358930290,1745553048642,-500.0,0.00042519,30]
[358930291,1745553048652,-12500.0,0.0004252,7]
[358930292,1745553048662,-551.53792963,0.00042521,17]
[358930293,1745553048672,-404.14898739,0.00042522,10]
[358930294,1745553048682,-205.94139489,0.00042522,10]
[358930295,1745553048692,-404.14898739,0.00042523,10]
[358930296,1745553048702,-730.58121949,0.00042525,10]
[358930297,1745553048712,-365.29060975,0.00042527,10]
[358930298,1745553048722,-1972.27991089,0.00042527,10]
[358930299,1745553048732,-701.216287,0.00042528,10]
[358930300,1745553048742,-12500.0,0.00042529,7]
[358930301,1745553048751,-261.07344874,0.00042532,10]
[358930302,1745553048761,-4228.40438479,0.00042535,10]
[358930303,1745553048771,-261.07344874,0.00042536,10]
[358930304,1745553048781,-2123.4759181,0.00042536,10]
[358930305,1745553048791,-404.14898739,0.00042537,10]
[358930306,1745553048800,-314.75710875,0.00042537,10]
[358930307,1745553048810,-202.0744937,0.00042537,10]
[358930308,1745553048820,-12500.0,0.00042538,7]
[358930309,1745553048830,-200.0,0.0004254,10]
[358930310,1745553048840,-200.0,0.0004254,10]
[358930311,1745553048850,-224.13127635,0.00042541,10]
[358930312,1745553048860,-600.97703936,0.00042541,10]
[358930313,1745553048871,-261.07344874,0.00042542,10]
[358930314,1745553048880,-2123.4759181,0.00042542,10]
[358930315,1745553048890,-710.49623817,0.00042544,10]
[358930316,1745553048900,-17.702686,0.00042545,10]
[358930317,1745553048914,-182.297314,0.00042545,10]
[358930318,1745553048924,-151.0,0.00042546,14]
[358930319,1745553048935,-710.49623817,0.00042546,10]
[358930320,1745553048944,-12500.0,0.00042546,7]
[358930321,1745553048954,-1972.27991089,0.00042547,10]
[358930322,1745553048964,-404.14898729,0.00042548,10]
[358930323,1745553048974,-1095.87182925,0.00042548,10]
[358930324,1745553048984,-365.29060975,0.00042549,10]
[358930325,1745553048994,-1140.32641526,0.0004255,10]
[358930326,1745553049006,-983.14950284,0.0004255,10]
[358930327,1745553049017,-1095.87182925,0.0004255,10]
[358930328,1745553049027,-2123.4759181,0.0004255,10]
[358930329,1745553049036,-202.0744937,0.0004255,10]
[358930330,1745553049046,-200.0,0.00042552,10]
[358930331,1745553049057,-12500.0,0.00042555,7]
[358930332,1745553049067,-701.216287,0.00042556,10]
[358930333,1745553049077,-1999.95809691,0.00042557,10]
[358930334,1745553049087,-600.97703936,0.00042558,10]
[358930335,1745553049097,-200.0,0.00042559,10]
[358930336,1745553049108,-200.0,0.0004256,10]
[358930337,1745553049118,-200.0,0.00042561,10]
[358930338,1745553049127,-4266.24953907,0.00042562,10]
[358930339,1745553049137,-1999.95809691,0.00042563,10]
[358930340,1745553049147,-365.29060975,0.00042563,10]
[358930341,1745553049157,-4266.24953907,0.00042564,10]
[358930342,1745553049168,-12500.0,0.00042564,7]
[358930343,1745553049177,-151.0,0.00042564,14]
[358930344,1745553049188,-246.990033,0.00042564,14]
[358930345,1745553049204,-246.990033,0.00042564,14]
[358930346,1745553049215,-151.0,0.00042564,14]
[358930347,1745553049225,-616.452898,0.00042564,14]
[358930348,1745553049235,-616.452898,0.00042564,14]
[358930349,1745553049245,-151.0,0.00042564,14]
[358930350,1745553049254,-200.0,0.00042565,10]
[358930351,1745553049264,-1095.87182925,0.00042566,10]
[358930352,1745553049275,-12500.0,0.00042573,7]
[358930353,1745553049284,-151.0,0.00042573,14]
[358930354,1745553049295,-180.093721,0.00042573,14]
[358930355,1745553049305,-151.0,0.00042573,14]
[358930356,1745553049315,-730.58121949,0.00042575,10]
[358930357,1745553049326,-224.13127635,0.00042576,10]
[358930358,1745553049335,-200.59580458,0.00042578,10]
[358930359,1745553049345,-314.75710875,0.00042581,10]
[358930360,1745553049355,-404.14898729,0.00042582,10]
[358930361,1745553049366,-12500.0,0.00042582,7]
[358930362,1745553049375,-264.52309,0.00042582,2]
[358930363,1745553049385,-264.52309,0.00042582,2]
[358930364,1745553049395,-156.795735,0.00042582,14]
[358930365,1745553049405,-206.896493,0.00042582,14]
[358930366,1745553049415,-206.896486,0.00042582,14]
[358930367,1745553049426,-151.0,0.00042582,14]
[358930368,1745553049435,-185.596036,0.00042582,14]
[358930369,1745553049445,-185.596035,0.00042582,14]
[358930370,1745553049455,-200.0,0.00042583,10]
[358930371,1745553049465,-200.0,0.00042584,10]
[358930372,1745553049475,-200.0,0.00042587,10]
[358930373,1745553049486,-710.49623817,0.00042588,10]
[358930374,1745553049497,-200.0,0.00042589,10]
[358930375,1745553049507,-215.397559,0.0004259,14]
[358930376,1745553049517,-215.397559,0.0004259,14]
[358930377,1745553049527,-12500.0,0.0004259,7]
[358930378,1745553049537,-1972.27991089,0.00042591,10]
[358930379,1745553049547,-200.0,0.00042594,10]
[358930380,1745553049557,-600.97703936,0.00042594,10]
[358930381,1745553049567,-314.75710875,0.00042597,10]
[358930382,1745553049577,-151.0,0.00042599,14]
[358930383,1745553049586,-12500.0,0.00042599,7]
[358930384,1745553049596,-200.0,0.00042601,10]
[358930385,1745553049606,-1999.95809691,0.00042603,10]
[358930386,1745553049616,-1000.0,0.00042603,14]
[358930387,1745553049626,-1000.0,0.00042603,14]
[358930388,1745553049636,-1972.27991089,0.00042605,10]
[358930389,1745553049646,-200.0,0.00042607,10]
[358930390,1745553049656,-12500.0,0.00042608,7]
[358930391,1745553049666,-200.59580458,0.0004261,10]
[358930392,1745553049675,-710.49623817,0.00042614,10]
[358930393,1745553049685,-200.59580458,0.00042614,10]
[358930394,1745553049694,-200.0,0.00042615,10]
[358930395,1745553049704,-365.29060975,0.00042616,10]
[358930396,1745553049714,-12500.0,0.00042617,7]
[358930397,1745553049724,-4228.40438479,0.00042619,10]
[358930398,1745553049734,-1095.87182925,0.00042619,10]
[358930399,1745553049744,-701.216287,0.0004262,10]
[358930400,1745553049753,-200.0,0.0004262,10]
[358930401,1745553049764,-710.49623817,0.00042625,10]
[358930402,1745553049774,-12500.0,0.00042626,7]
[358930403,1745553049784,-202.0744937,0.00042626,10]
[358930404,1745553049794,-4266.24953907,0.00042628,10]
[358930405,1745553049804,-200.0,0.00042628,10]
[358930406,1745553049814,-404.14898729,0.00042629,10]
[358930407,1745553049824,-200.0,0.0004263,10]
[358930408,1745553049834,-205.94139489,0.0004263,10]
[358930409,1745553049844,-261.07344874,0.00042631,10]
[358930410,1745553049853,-200.0,0.00042632,10]
[358930411,1745553049863,-1320.94206783,0.00042634,10]
[358930412,1745553049873,-12500.0,0.00042634,7]
[358930413,1745553049882,-261.07344874,0.00042641,10]
[358930414,1745553049893,-151.0,0.00042643,14]
[358930415,1745553049904,-12500.0,0.00042643,7]
[358930416,1745553049914,-200.0,0.00042644,10]
[358930417,1745553049923,-314.75710875,0.00042644,10]
[358930418,1745553049933,-200.0,0.00042647,10]
[358930419,1745553049943,-200.0,0.00042648,10]
[358930420,1745553049953,-261.07344874,0.00042648,10]
[358930421,1745553049965,-200.59580458,0.0004265,10]
[358930422,1745553049975,-12500.0,0.00042652,7]
[358930423,1745553049984,-314.75710875,0.00042654,10]
[358930424,1745553049994,-1095.87182925,0.00042654,10]
[358930425,1745553050003,-1320.94206783,0.00042656,10]
[358930426,1745553050013,-222.34819597,0.00042656,14]
[358930427,1745553050023,-600.97703936,0.00042656,10]
[358930428,1745553050033,-2123.4759181,0.00042657,10]
[358930429,1745553050042,-314.75710875,0.00042658,10]
[358930430,1745553050053,-200.0,0.00042659,10]
[358930431,1745553050063,-12500.0,0.00042661,7]
[358930432,1745553050073,-200.0,0.00042662,10]
[358930433,1745553050084,-730.58121949,0.00042663,10]
[358930434,1745553050093,-200.0,0.00042664,10]
[358930435,1745553050103,-200.0,0.00042667,10]
[358930436,1745553050113,-12500.0,0.0004267,7]
[358930437,1745553050123,-1320.94206783,0.00042672,10]
[358930438,1745553050133,-200.0,0.00042672,10]
[358930439,1745553050142,-200.0,0.00042674,10]
[358930440,1745553050153,-1095.87182925,0.00042676,10]
[358930441,1745553050163,-404.14898729,0.00042677,10]
[358930442,1745553050173,-200.0,0.00042677,10]
[358930443,1745553050183,-12500.0,0.00042678,7]
[358930444,1745553050193,-261.07344874,0.00042682,10]
[358930445,1745553050206,-4266.24953907,0.00042684,10]
[358930446,1745553050216,-160.938463,0.00042687,14]
[358930447,1745553050226,-246.990033,0.00042687,14]
[358930448,1745553050235,-246.990033,0.00042687,14]
[358930449,1745553050245,-151.0,0.00042687,14]
[358930450,1745553050255,-616.452898,0.00042687,14]
[358930451,1745553050264,-616.452898,0.00042687,14]
[358930452,1745553050274,-274.659475,0.00042687,14]
[358930453,1745553050284,-9591.91739192,0.00042687,7]
[358930454,1745553050297,-609.5,0.00042687,7]
[358930455,1745553050330,-2298.58260808,0.00042687,7]
[358930456,1745553050339,-1095.87182925,0.00042688,10]
[358930457,1745553050348,-701.216287,0.0004269,10]
[358930458,1745553050358,-710.49623817,0.0004269,10]
[358930459,1745553050368,-200.0,0.00042692,10]
[358930460,1745553050378,-200.0,0.00042692,10]
[358930461,1745553050388,-200.0,0.00042692,10]
[358930462,1745553050397,-2123.4759181,0.00042692,10]
[358930463,1745553050408,-200.59580458,0.00042695,10]
[358930464,1745553050418,-6945.37162529,0.00042696,7]
[358930465,1745553050430,-2055.80030106,0.00042696,7]
[358930466,1745553050488,-551.43864115,0.0004009,15]
[358930467,1745553050498,-2127.05788998,0.00042696,7]
[358930468,1745553050956,-992.0,0.00037281,5]
[358930469,1745553050967,-690.535018,0.00040263,14]
[358930470,1745553050976,-690.535018,0.00041945,14]
[358930471,1745553050986,-21.06036867,0.0004201,14]
[358930472,1745553050997,-669.47464933,0.0004201,14]
[358930473,1745553051007,-23.08028964,0.0004215,14]
[358930474,1745553051019,-667.45472836,0.0004215,14]
[358930475,1745553051029,-1371.77018367,0.00042696,7]
[358930476,1745553051039,-151.0,0.00042696,14]
[358930477,1745553051048,-151.0,0.00042696,14]
[358930478,1745553051058,-151.0,0.00042696,14]
[358930479,1745553051067,-701.216287,0.00042697,10]
[358930480,1745553051077,-205.94139489,0.00042699,10]
[358930481,1745553051086,-200.0,0.00042699,10]
[358930482,1745553051096,-314.75710875,0.000427,10]
[358930483,1745553051105,-2454.24,0.000427,14]
[358930484,1745553051114,-200.0,0.000427,10]
[358930485,1745553051124,-4228.40438479,0.00042701,10]
[358930486,1745553051134,-500.0,0.00042704,30]
[358930487,1745553051143,-9596.92879248,0.00042705,7]
[358930488,1745553051233,-2239.10260521,0.00042705,7]
[358930489,1745553051246,-663.96860231,0.00042705,7]
[358930490,1745553051255,-215.397559,0.00042705,14]
[358930491,1745553051264,-215.397559,0.00042705,14]
[358930492,1745553051275,-264.52309,0.00042705,2]
[358930493,1745553051284,-264.523083,0.00042705,2]
[358930494,1745553051293,-205.94139489,0.00042707,10]
[358930495,1745553051302,-1972.27991089,0.00042707,10]
[358930496,1745553051311,-701.216287,0.00042708,10]
[358930497,1745553051320,-404.14898739,0.00042709,10]
[358930498,1745553051329,-1972.27991089,0.0004271,10]
[358930499,1745553051340,-200.0,0.00042711,10]
[358930500,1745553051349,-365.29060975,0.00042711,10]
[358930501,1745553051359,-1866.93295411,0.00042711,10]
[358930502,1745553051371,-383.30164025,0.00042711,10]
[358930503,1745553051382,-649.83334176,0.00042711,10]
[358930504,1745553051402,-690.535018,0.00042274,14]
[358930505,1745553051411,-1328.33644867,0.00042711,10]
[358930506,1745553051421,-404.14898729,0.00042712,10]
[358930507,1745553051431,-261.07344874,0.00042712,10]
[358930508,1745553051440,-404.14898729,0.00042714,10]
[358930509,1745553051452,-12500.0,0.00042714,7]
[358930510,1745553051462,-261.07344874,0.00042715,10]
[358930511,1745553051471,-4266.24953907,0.00042716,10]
[358930512,1745553051482,-205.94139489,0.00042717,10]
[358930513,1745553051492,-1320.94206783,0.00042721,10]
[358930514,1745553051502,-12500.0,0.00042722,7]
[358930515,1745553051512,-701.216287,0.00042722,10]
[358930516,1745553051521,-404.14898739,0.00042724,10]
[358930517,1745553051531,-600.97703936,0.00042724,10]
[358930518,1745553051541,-200.0,0.00042725,10]
[358930519,1745553051551,-261.07344874,0.00042727,10]
[358930520,1745553051560,-710.49623817,0.00042728,10]
[358930521,1745553051570,-152.0,0.0004273,9]
[358930522,1745553051580,-151.0,0.00042731,14]
[358930523,1745553051589,-12500.0,0.00042731,7]
[358930524,1745553051599,-730.58121949,0.00042732,10]
[358930525,1745553051608,-200.0,0.00042732,10]
[358930526,1745553051618,-200.0,0.00042734,10]
[358930527,1745553051628,-224.13127635,0.00042738,10]
[358930528,1745553051637,-4266.24953907,0.00042738,10]
[358930529,1745553051647,-730.58121949,0.00042739,10]
[358930530,1745553051656,-1000.0,0.0004274,14]
[358930531,1745553051666,-593.17341865,0.0004274,6]
[358930532,1745553051675,-12500.0,0.0004274,7]
[358930533,1745553051685,-200.0,0.00042742,10]
[358930534,1745553051694,-224.13127635,0.00042743,10]
[358930535,1745553051704,-200.0,0.00042748,10]
[358930536,1745553051714,-205.94139489,0.00042752,10]
[358930537,1745553051724,-200.0,0.00042753,10]
[358930538,1745553051733,-200.0,0.00042755,10]
[358930539,1745553051743,-202.0744937,0.00042756,10]
[358930540,1745553051752,-200.0,0.0004276,10]
[358930541,1745553051762,-200.0,0.00042762,10]
[358930542,1745553051772,-200.0,0.00042763,10]
[358930543,1745553051782,-1999.95809691,0.00042763,10]
[358930544,1745553051791,-200.0,0.00042764,10]
[358930545,1745553051802,-4228.40438479,0.00042765,10]
[358930546,1745553051811,-1999.95809691,0.00042766,10]
[358930547,1745553051820,-200.0,0.00042766,10]
[358930548,1745553051830,-200.0,0.00042769,10]
[358930549,1745553051839,-1320.94206783,0.0004277,10]
[358930550,1745553051849,-261.07344874,0.00042771,10]
[358930551,1745553051859,-2123.4759181,0.00042775,10]
[358930552,1745553051868,-1320.94206783,0.0004278,10]
[358930553,1745553051877,-200.0,0.0004278,10]
[358930554,1745553051887,-261.07344874,0.00042782,10]
[358930555,1745553051896,-404.14898729,0.00042784,10]
[358930556,1745553051905,-200.0,0.00042785,10]
[358930557,1745553051915,-1972.27991089,0.0004279,10]
[358930558,1745553051925,-404.14898739,0.00042795,10]
[358930559,1745553051936,-200.0,0.00042795,10]
[358930560,1745553051945,-205.94139489,0.00042798,10]
[358930561,1745553051956,-600.97703936,0.00042798,10]
[358930562,1745553051967,-1000.0,0.00042877,14]